bitfinex/quotes_SOLUSD_20250111
["timestamp","ask_amount","ask_price","bid_price","bid_amount"]
[1736590726070,81.7,185.36,185.28,58.3]
[1736590726269,6.0493,185.35,185.28,58.3]
[1736590726895,81.7,185.34,185.28,58.3]
[1736590727474,81.7,185.34,185.29,14.16071367]
[1736590727781,81.7,185.34,185.31,14.16071367]
[1736590729003,1.513,185.38,185.31,14.16071367]
[1736590729193,1.513,185.38,185.3,14.16071367]
[1736590729390,83.213,185.38,185.3,14.16071367]
[1736590729570,83.213,185.38,185.31,14.16071367]
[1736590730001,83.213,185.38,185.32,14.16071367]
[1736590730205,83.213,185.38,185.33,14.16071367]
[1736590730502,83.213,185.38,185.31,14.16071367]
[1736590731496,81.7,185.37,185.31,20.0]
[1736590732710,81.7,185.37,185.28,72.46071367]
[1736590732891,81.7,185.37,185.28,14.16071367]
[1736590733414,81.7,185.35,185.26,14.16071367]
[1736590734701,81.7,185.35,185.27,34.16071367]
[1736590735085,81.7,185.35,185.29,14.16071367]
[1736590735288,81.7,185.35,185.3,14.16071367]
[1736590736193,81.7,185.35,185.29,14.16071367]
[1736590736809,81.7,185.35,185.28,14.16071367]
[1736590740001,81.7,185.34,185.28,14.16071367]
[1736590740803,81.7,185.33,185.26,14.16071367]
[1736590741505,81.7,185.32,185.25,14.16071367]
[1736590742490,81.7,185.32,185.28,14.16071367]
[1736590742800,1.513,185.38,185.31,14.16071367]
[1736590742801,81.7,185.36,185.31,14.16071367]
[1736590743009,21.610584,185.44,185.31,14.16071367]
[1736590743010,1.6004,185.42,185.35,14.16071367]
[1736590743210,1.6004,185.42,185.37,14.16071367]
[1736590744008,1.6004,185.42,185.36,20.0]
[1736590747312,1.6004,185.42,185.31,4.7]
[1736590747515,1.6004,185.42,185.34,14.16071367]
[1736590748087,81.7,185.4,185.24,30.0]
[1736590748290,81.7,185.4,185.27,14.16071367]
[1736590748609,81.7,185.35,185.26,14.16071367]
[1736590749589,81.7,185.34,185.27,14.16071367]
[1736590750022,81.7,185.34,185.29,14.16071367]
[1736590750517,81.7,185.34,185.27,20.0]
[1736590751115,81.7,185.34,185.27,34.16071367]
[1736590753228,81.7,185.34,185.27,20.0]
[1736590755224,81.7,185.33,185.27,20.0]
[1736590755409,81.7,185.33,185.27,34.16071367]
[1736590756426,81.7,185.33,185.27,20.0]
[1736590757118,81.7,185.33,185.27,34.16071367]
[1736590759024,81.7,185.33,185.27,20.0]
[1736590760306,81.7,185.33,185.27,34.16071367]
[1736590761125,81.7,185.32,185.27,34.16071367]
[1736590761841,81.7,185.32,185.27,20.0]
[1736590762621,81.7,185.3,185.25,14.16071367]
[1736590762821,81.7,185.3,185.24,14.16071367]
[1736590764833,81.7,185.29,185.24,20.0]
[1736590767734,81.7,185.29,185.23,14.16071367]
[1736590767935,1.6196,185.33,185.2,14.16071367]
[1736590767936,81.7,185.27,185.2,14.16071367]
[1736590768141,81.7,185.26,185.19,14.16071367]
[1736590768830,81.7,185.26,185.2,14.16071367]
[1736590769231,81.7,185.26,185.21,14.16071367]
[1736590769832,81.7,185.26,185.2,14.16071367]
[1736590770038,81.7,185.26,185.2,34.16071367]
[1736590770614,81.7,185.26,185.17,23.776884]
[1736590770615,1.5841,185.25,185.18,14.16071367]
[1736590772037,1.5841,185.25,185.17,34.16071367]
[1736590772731,81.7,185.24,185.17,34.16071367]
[1736590775656,81.7,185.24,185.23,14.16071367]
[1736590775947,1.5841,185.3,185.23,14.16071367]
[1736590776140,1.5841,185.3,185.24,14.16071367]
[1736590777718,1.5841,185.3,185.25,14.16071367]
[1736590780446,1.5841,185.3,185.24,14.16071367]
[1736590785355,1.5841,185.3,185.24,9.07442699]
[1736590786366,81.7,185.29,185.18,6.395]
[1736590786533,81.7,185.29,185.21,9.07442699]
[1736590788078,81.7,185.28,185.19,9.07442699]
[1736590788967,1.5841,185.3,185.17,9.07442699]
[1736590788968,81.7,185.26,185.17,9.07442699]
[1736590789672,81.7,185.25,185.19,9.07442699]
[1736590789872,81.7,185.25,185.2,9.07442699]
[1736590790070,81.7,185.25,185.21,9.07442699]
[1736590790265,81.7,185.25,185.22,9.07442699]
[1736590791759,81.7,185.25,185.23,9.07442699]
[1736590791963,81.7,185.32,185.24,32.85131099]
[1736590792159,81.7,185.32,185.28,9.07442699]
[1736590793258,81.7,185.32,185.29,9.07442699]
[1736590794083,81.7,185.37,185.29,9.07442699]
[1736590794268,81.7,185.37,185.3,9.07442699]
[1736590795179,81.7,185.37,185.31,9.07442699]
[1736590795382,81.7,185.37,185.32,9.07442699]
[1736590795677,81.7,185.37,185.31,9.07442699]
[1736590798256,81.7,185.37,185.32,9.07442699]
[1736590798763,81.7,185.37,185.33,9.07442699]
[1736590799365,6.0452,185.42,185.35,9.07442699]
[1736590799970,6.0452,185.42,185.34,9.07442699]
[1736590801199,81.7,185.41,185.35,9.07442699]
[1736590802070,81.7,185.41,185.34,29.07442699]
[1736590802499,81.7,185.41,185.35,9.07442699]
[1736590803677,81.7,185.41,185.36,9.07442699]
[1736590804009,81.7,185.41,185.37,9.07442699]
[1736590808890,81.7,185.41,185.38,9.07442699]
[1736590809420,81.7,185.41,185.39,9.07442699]
[1736590809725,81.7,185.45,185.4,9.07442699]
[1736590810027,81.7,185.45,185.42,9.07442699]
[1736590813133,81.7,185.44,185.37,20.0]
[1736590813332,81.7,185.43,185.37,29.07442699]
[1736590814209,81.7,185.43,185.38,9.07442699]
[1736590814929,81.7,185.43,185.37,29.07442699]
[1736590816223,81.7,185.43,185.38,9.07442699]
[1736590817904,81.7,185.42,185.38,9.07442699]
[1736590818108,81.7,185.42,185.37,29.07442699]
[1736590819129,81.7,185.41,185.31,1.54]
[1736590819314,81.7,185.4,185.34,9.07442699]
[1736590819510,81.7,185.39,185.32,9.07442699]
[1736590819722,81.7,185.37,185.31,9.07442699]
[1736590819912,81.7,185.36,185.3,9.07442699]
[1736590820834,81.7,185.35,185.31,9.07442699]
[1736590822337,81.7,185.35,185.32,9.07442699]
[1736590823444,81.7,185.35,185.33,9.07442699]
[1736590823651,81.7,185.35,185.34,9.07442699]
[1736590823946,81.7,185.41,185.34,9.07442699]
[1736590824265,81.7,185.41,185.36,9.07442699]
[1736590826836,81.7,185.41,185.35,9.07442699]
[1736590828033,81.7,185.41,185.36,9.07442699]
[1736590829357,81.7,185.41,185.35,9.07442699]
[1736590829876,81.7,185.4,185.35,9.07442699]
[1736590832270,81.7,185.4,185.36,9.07442699]
[1736590833632,81.7,185.4,185.35,9.07442699]
[1736590835843,81.7,185.39,185.35,9.07442699]
[1736590836254,81.7,185.39,185.36,9.07442699]
[1736590837343,81.7,185.39,185.35,9.07442699]
[1736590839658,81.7,185.37,185.32,9.07442699]
[1736590843437,81.7,185.37,185.33,9.07442699]
[1736590845352,81.7,185.37,185.32,29.07442699]
[1736590845683,81.7,185.37,185.27,4.68]
[1736590845854,81.7,185.36,185.29,9.07442699]
[1736590846371,81.7,185.36,185.28,29.07442699]
[1736590846554,81.7,185.36,185.29,9.07442699]
[1736590850777,81.7,185.36,185.28,9.07442699]
[1736590850970,81.7,185.34,185.27,9.07442699]
[1736590851163,81.7,185.32,185.27,9.07442699]
[1736590851366,81.7,185.31,185.23,58.32]
[1736590851575,81.7,185.31,185.24,9.07442699]
[1736590853371,81.7,185.31,185.25,9.07442699]
[1736590854288,81.7,185.31,185.26,9.07442699]
[1736590856376,81.7,185.31,185.25,9.07442699]
[1736590856891,81.7,185.3,185.25,9.07442699]
[1736590857776,81.7,185.3,185.26,9.07442699]
[1736590860382,81.7,185.3,185.23,58.32]
[1736590860592,81.7,185.29,185.16,7.6677]
[1736590860776,81.7,185.28,185.16,7.6677]
[1736590860978,81.7,185.27,185.21,9.07442699]
[1736590861397,81.7,185.27,185.2,9.07442699]
[1736590861603,81.7,185.26,185.19,9.07442699]
[1736590862375,81.7,185.25,185.21,9.07442699]
[1736590862576,81.7,185.25,185.22,9.07442699]
[1736590862890,81.7,185.25,185.21,9.07442699]
[1736590867618,81.7,185.25,185.22,9.07442699]
[1736590867822,81.7,185.28,185.24,9.07442699]
[1736590868127,81.7,185.28,185.27,9.07442699]
[1736590873894,81.7,185.28,185.23,23.776884]
[1736590874209,81.7,185.28,185.27,9.07442699]
[1736590874819,81.7,185.32,185.27,9.07442699]
[1736590875110,81.7,185.32,185.28,9.07442699]
[1736590875608,81.7,185.32,185.29,9.07442699]
[1736590880812,81.7,185.32,185.31,9.07442699]
[1736590881798,81.7,185.36,185.31,9.07442699]
[1736590882000,81.7,185.36,185.32,9.07442699]
[1736590882596,81.7,185.36,185.31,9.07442699]
[1736590883221,81.7,185.36,185.32,9.07442699]
[1736590883889,81.7,185.36,185.31,9.07442699]
[1736590884093,1.5636,185.37,185.28,9.07442699]
[1736590884094,81.7,185.35,185.28,9.07442699]
[1736590884819,81.7,185.34,185.28,9.07442699]
[1736590886537,81.7,185.34,185.3,9.07442699]
[1736590889426,81.7,185.34,185.28,9.07442699]
[1736590889729,81.7,185.33,185.28,9.07442699]
[1736590890544,81.7,185.33,185.29,9.07442699]
[1736590892217,81.7,185.33,185.3,9.07442699]
[1736590893733,81.7,185.33,185.29,9.07442699]
[1736590893935,81.7,185.31,185.25,9.07442699]
[1736590894311,81.7,185.31,185.24,20.0]
[1736590894514,81.7,185.31,185.25,9.07442699]
[1736590897021,81.7,185.3,185.2,11.9617]
[1736590897220,81.7,185.28,185.22,9.07442699]
[1736590897529,81.7,185.28,185.21,9.07442699]
[1736590900435,81.7,185.28,185.2,9.07442699]
[1736590901822,81.7,185.27,185.2,9.07442699]
[1736590902240,81.7,185.27,185.22,9.07442699]
[1736590902451,81.7,185.26,185.23,9.07442699]
[1736590902637,81.7,185.26,185.22,9.07442699]
[1736590906720,81.7,185.26,185.23,9.07442699]
[1736590906921,1.6552,185.3,185.19,23.776884]
[1736590906922,81.7,185.3,185.25,9.07442699]
[1736590907123,81.7,185.3,185.28,9.07442699]
[1736590908829,81.7,185.3,185.29,9.07442699]
[1736590913229,81.7,185.34,185.29,9.07442699]
[1736590913427,81.7,185.34,185.33,9.07442699]
[1736590917532,81.7,185.34,185.32,9.07442699]
[1736590917729,81.7,185.34,185.33,9.07442699]
[1736590918459,81.7,185.34,185.31,9.07442699]
[1736590920553,81.7,185.33,185.28,9.07442699]
[1736590920858,81.7,185.33,185.27,9.07442699]
[1736590921455,81.7,185.32,185.26,9.07442699]
[1736590921645,81.7,185.31,185.25,9.07442699]
[1736590921844,81.7,185.3,185.26,9.07442699]
[1736590922957,81.7,185.3,185.22,6.5451]
[1736590922958,81.7,185.29,185.25,9.07442699]
[1736590923260,81.7,185.28,185.22,9.07442699]
[1736590923641,81.7,185.28,185.24,9.07442699]
[1736590924847,81.7,185.28,185.25,9.07442699]
[1736590925261,81.7,185.28,185.26,9.07442699]
[1736590925563,81.7,185.33,185.27,9.07442699]
[1736590926369,81.7,185.32,185.28,9.07442699]
[1736590926754,81.7,185.32,185.27,9.07442699]
[1736590927253,81.7,185.32,185.28,9.07442699]
[1736590927739,81.7,185.32,185.29,9.07442699]
[1736590928767,81.7,185.32,185.3,9.07442699]
[1736590928941,81.7,185.32,185.31,9.07442699]
[1736590931750,81.7,185.32,185.3,9.07442699]
[1736590934373,81.7,185.32,185.31,9.07442699]
[1736590935167,81.7,185.32,185.3,9.07442699]
[1736590935351,81.7,185.31,185.27,9.07442699]
[1736590936467,81.7,185.3,185.29,9.07442699]
[1736590938249,81.7,185.3,185.28,9.07442699]
[1736590938965,81.7,185.3,185.29,9.07442699]
[1736590939169,81.7,185.3,185.28,9.07442699]
[1736590940661,81.7,185.3,185.29,9.07442699]
[1736590942877,81.7,185.35,185.3,23.776884]
[1736590943073,81.7,185.35,185.33,9.07442699]
[1736590943665,81.7,185.35,185.32,9.07442699]
[1736590948777,81.7,185.35,185.34,9.07442699]
[1736590963575,81.7,185.35,185.29,25.409584]
[1736590963888,81.7,185.35,185.33,9.07442699]
[1736590964989,81.7,185.35,185.29,25.409584]
[1736590965187,81.7,185.35,185.32,9.07442699]
[1736590965490,81.7,185.35,185.29,25.409584]
[1736590965793,81.7,185.35,185.33,9.07442699]
[1736590966392,81.7,185.35,185.32,9.07442699]
[1736590966970,81.7,185.35,185.33,9.07442699]
[1736590967172,81.7,185.35,185.34,9.07442699]
[1736590972405,6.4556,185.43,185.34,9.07442699]
[1736590972406,81.7,185.39,185.34,9.07442699]
[1736590972695,81.7,185.39,185.38,9.07442699]
[1736590974595,81.7,185.39,185.37,9.07442699]
[1736590974799,81.7,185.39,185.38,9.07442699]
[1736590976614,81.7,185.39,185.36,9.07442699]
[1736590977200,81.7,185.39,185.34,9.07442699]
[1736590977392,81.7,185.38,185.33,9.07442699]
[1736590980004,81.7,185.38,185.32,9.07442699]
[1736590980909,81.7,185.38,185.31,9.07442699]
[1736590982705,81.7,185.37,185.3,23.776884]
[1736590983007,6.5748,185.4,185.2,142.35086095]
[1736590983008,81.7,185.36,185.26,32.43]
[1736590983185,81.7,185.35,185.27,23.776884]
[1736590983387,1.5343,185.38,185.27,23.776884]
[1736590983388,81.7,185.34,185.3,9.07442699]
[1736590987518,81.7,185.34,185.29,9.07442699]
[1736590988696,81.7,185.33,185.29,9.07442699]
[1736590989395,81.7,185.33,185.3,9.07442699]
[1736590990917,81.7,185.33,185.31,9.07442699]
[1736590992404,81.7,185.33,185.32,9.07442699]
[1736590998731,81.7,185.33,185.31,9.07442699]
[1736590998907,81.7,185.33,185.32,9.07442699]
[1736591000336,81.7,185.33,185.31,9.07442699]
[1736591004136,81.7,185.33,185.28,23.776884]
[1736591004442,81.7,185.33,185.31,9.07442699]
[1736591006763,81.7,185.33,185.32,9.07442699]
[1736591006922,81.7,185.33,185.3,20.0]
[1736591007123,81.7,185.33,185.32,9.07442699]
[1736591010059,81.7,185.38,185.32,32.85131099]
[1736591010366,81.7,185.38,185.37,9.07442699]
[1736591010926,15.91399645,185.46,185.37,9.07442699]
[1736591011156,15.91399645,185.46,185.38,9.07442699]
[1736591011356,7.5528,185.46,185.38,9.07442699]
[1736591014241,7.5528,185.46,185.39,9.07442699]
[1736591015679,81.7,185.45,185.39,9.07442699]
[1736591016869,81.7,185.45,185.44,9.07442699]
[1736591022583,81.7,185.45,185.42,9.07442699]
[1736591022765,81.7,185.45,185.41,9.07442699]
[1736591025149,81.7,185.45,185.4,9.07442699]
[1736591025958,81.7,185.45,185.38,23.776884]
[1736591026150,81.7,185.45,185.4,9.07442699]
[1736591027676,81.7,185.44,185.4,9.07442699]
[1736591028586,81.7,185.4,185.34,1.5612]
[1736591028787,81.7,185.4,185.35,9.07442699]
[1736591028977,81.7,185.39,185.35,9.07442699]
[1736591031486,81.7,185.38,185.31,63.724]
[1736591031690,81.7,185.38,185.32,9.07442699]
[1736591035789,81.7,185.37,185.33,9.07442699]
[1736591039395,81.7,185.37,185.34,9.07442699]
[1736591039595,81.7,185.37,185.36,9.07442699]
[1736591043494,81.7,185.37,185.35,20.0]
[1736591043680,81.7,185.37,185.3,1.5612]
[1736591043886,81.7,185.37,185.32,9.07442699]
[1736591044206,81.7,185.37,185.33,9.07442699]
[1736591046475,81.7,185.37,185.34,9.07442699]
[1736591047021,81.7,185.37,185.35,9.07442699]
[1736591049672,81.7,185.37,185.36,9.07442699]
[1736591053380,81.7,185.37,185.36,32.85131099]
[1736591053879,81.7,185.43,185.36,32.85131099]
[1736591054083,81.7,185.42,185.4,9.07442699]
[1736591055002,81.7,185.42,185.34,0.80908027]
[1736591055003,81.7,185.46,185.41,9.07442699]
[1736591055707,81.7,185.46,185.42,9.07442699]
[1736591057283,81.7,185.46,185.41,9.07442699]
[1736591060512,81.7,185.45,185.41,9.07442699]
[1736591062513,81.7,185.45,185.42,9.07442699]
[1736591062694,81.7,185.45,185.43,9.07442699]
[1736591063096,81.7,185.45,185.42,9.07442699]
[1736591064009,81.7,185.45,185.41,9.07442699]
[1736591069527,81.7,185.44,185.41,9.07442699]
[1736591070015,81.7,185.44,185.36,1.5871]
[1736591070218,81.7,185.41,185.37,9.07442699]
[1736591072715,81.7,185.41,185.38,9.07442699]
[1736591074409,81.7,185.41,185.37,9.07442699]
[1736591074603,81.7,185.4,185.32,49.6351849]
[1736591074800,81.7,185.4,185.36,9.07442699]
[1736591077338,81.7,185.39,185.33,23.776884]
[1736591077527,81.7,185.39,185.35,9.07442699]
[1736591078029,81.7,185.39,185.36,9.07442699]
[1736591079226,81.7,185.39,185.38,9.07442699]
[1736591081712,81.7,185.39,185.36,20.0]
[1736591081909,81.7,185.39,185.38,9.07442699]
[1736591084109,81.7,185.39,185.38,32.85131099]
[1736591087532,81.7,185.46,185.41,20.0]
[1736591087712,81.7,185.45,185.42,9.07442699]
[1736591088537,81.7,185.45,185.43,9.07442699]
[1736591096938,81.7,185.45,185.39,23.776884]
[1736591097143,81.7,185.45,185.41,9.07442699]
[1736591098143,81.7,185.45,185.4,9.07442699]
[1736591099018,81.7,185.44,185.41,9.07442699]
[1736591102438,81.7,185.43,185.41,9.07442699]
[1736591102747,81.7,185.43,185.42,9.07442699]
[1736591105435,81.7,185.43,185.41,9.07442699]
[1736591106142,81.7,185.43,185.42,9.07442699]
[1736591106333,81.7,185.48,185.42,9.07442699]
[1736591106529,81.7,185.48,185.44,9.07442699]
[1736591111377,81.7,185.47,185.44,9.07442699]
[1736591113671,81.7,185.46,185.4,20.0]
[1736591113882,81.7,185.46,185.42,9.07442699]
[1736591115467,81.7,185.46,185.38,1.6053]
[1736591115664,81.7,185.45,185.39,9.07442699]
[1736591116475,81.7,185.44,185.37,9.07442699]
[1736591116655,81.7,185.43,185.36,9.07442699]
[1736591116971,81.7,185.43,185.37,9.07442699]
[1736591118851,81.7,185.42,185.37,9.07442699]
[1736591119052,81.7,185.42,185.36,9.07442699]
[1736591119259,81.7,185.42,185.35,9.07442699]
[1736591121670,81.7,185.4,185.35,9.07442699]
[1736591121838,81.7,185.38,185.33,9.07442699]
[1736591122469,81.7,185.37,185.33,9.07442699]
[1736591128265,81.7,185.36,185.32,9.07442699]
[1736591129180,81.7,185.36,185.27,5.404]
[1736591129368,81.7,185.34,185.32,9.07442699]
[1736591129887,81.7,185.34,185.27,23.776884]
[1736591130060,81.7,185.34,185.3,9.07442699]
[1736591130456,81.7,185.33,185.31,9.07442699]
[1736591134906,6.2724,185.41,185.26,6.4532]
[1736591134907,81.7,185.32,185.26,6.4532]
[1736591135078,81.7,185.32,185.25,59.8204]
[1736591135282,81.7,185.31,185.27,9.07442699]
[1736591137145,81.7,185.31,185.28,9.07442699]
[1736591137412,81.7,185.31,185.3,9.07442699]
[1736591142014,81.7,185.31,185.25,1.5204]
[1736591142188,81.7,185.31,185.27,9.07442699]
[1736591144215,81.7,185.31,185.28,5.404]
[1736591144390,81.7,185.3,185.27,9.07442699]
[1736591147709,81.7,185.29,185.26,9.07442699]
[1736591150319,81.7,185.29,185.23,5.404]
[1736591150620,81.7,185.29,185.26,9.07442699]
[1736591151793,81.7,185.29,185.27,9.07442699]
[1736591156158,81.7,185.29,185.26,9.07442699]
[1736591156343,81.7,185.29,185.23,5.404]
[1736591156344,81.7,185.28,185.22,6.0289]
[1736591156641,81.7,185.28,185.25,9.07442699]
[1736591157403,6.022,185.35,185.18,6.0502]
[1736591157404,81.7,185.25,185.18,6.0502]
[1736591157603,81.7,185.25,185.21,9.07442699]
[1736591158029,81.7,185.25,185.2,20.0]
[1736591158237,81.7,185.25,185.2,9.07442699]
[1736591158915,81.7,185.25,185.21,9.07442699]
[1736591159233,81.7,185.24,185.2,23.776884]
[1736591159738,81.7,185.24,185.2,20.0]
[1736591160320,81.7,185.3,185.23,9.07442699]
[1736591160636,81.7,185.28,185.27,9.07442699]
[1736591160930,81.7,185.34,185.27,9.07442699]
[1736591161121,81.7,185.34,185.3,9.07442699]
[1736591161438,81.7,185.34,185.29,9.07442699]
[1736591165147,81.7,185.34,185.3,9.07442699]
[1736591165942,81.7,185.34,185.32,9.07442699]
[1736591166445,81.7,185.34,185.33,9.07442699]
[1736591167249,81.7,185.39,185.33,9.07442699]
[1736591167423,1.6133,185.41,185.35,9.07442699]
[1736591167941,81.7,185.4,185.34,9.07442699]
[1736591170024,81.7,185.4,185.35,9.07442699]
[1736591171559,81.7,185.4,185.29,36.5765]
[1736591171717,81.7,185.4,185.35,9.07442699]
[1736591176847,81.7,185.39,185.38,9.07442699]
[1736591177229,81.7,185.43,185.38,9.07442699]
[1736591177556,81.7,185.42,185.39,9.07442699]
[1736591177936,81.7,185.41,185.38,9.07442699]
[1736591178251,81.7,185.39,185.35,9.07442699]
[1736591178424,81.7,185.39,185.33,1.5859]
[1736591178757,81.7,185.39,185.35,9.07442699]
[1736591179422,81.7,185.39,185.36,9.07442699]
[1736591179961,81.7,185.38,185.37,9.07442699]
[1736591182857,81.7,185.38,185.37,32.85131099]
[1736591183021,81.7,185.47,185.38,23.776884]
[1736591183225,7.8491,185.49,185.41,9.07442699]
[1736591188379,7.8491,185.49,185.4,9.07442699]
[1736591189378,81.7,185.48,185.41,9.07442699]
[1736591189764,81.7,185.45,185.43,9.07442699]
[1736591192076,81.7,185.45,185.44,9.07442699]
[1736591193047,81.7,185.45,185.43,9.07442699]
[1736591193242,81.7,185.45,185.41,9.07442699]
[1736591195352,81.7,185.44,185.41,9.07442699]
[1736591197467,81.7,185.44,185.42,9.07442699]
[1736591199863,81.7,185.43,185.35,8.0476]
[1736591200186,81.7,185.43,185.38,9.07442699]
[1736591201106,81.7,185.42,185.39,9.07442699]
[1736591202396,81.7,185.42,185.38,9.07442699]
[1736591204192,81.7,185.41,185.38,9.07442699]
[1736591205505,81.7,185.4,185.37,9.07442699]
[1736591207503,81.7,185.39,185.31,7.758]
[1736591207806,81.7,185.39,185.34,9.07442699]
[1736591209087,81.7,185.38,185.35,9.07442699]
[1736591209405,81.7,185.38,185.36,9.07442699]
[1736591211919,81.7,185.38,185.37,9.07442699]
[1736591214911,81.7,185.38,185.36,9.07442699]
[1736591215103,81.7,185.38,185.37,9.07442699]
[1736591219225,81.7,185.46,185.37,9.07442699]
[1736591219430,81.7,185.46,185.39,9.07442699]
[1736591220635,81.7,185.45,185.37,9.07442699]
[1736591225110,81.7,185.44,185.37,9.07442699]
[1736591225309,81.7,185.43,185.35,9.07442699]
[1736591231241,81.7,185.42,185.35,9.07442699]
[1736591235646,81.7,185.42,185.37,10.70382699]
[1736591235954,81.7,185.41,185.39,9.07442699]
[1736591236250,81.7,185.41,185.4,9.07442699]
[1736591237331,81.7,185.41,185.39,9.07442699]
[1736591238219,81.7,185.48,185.4,9.07442699]
[1736591238413,81.7,185.48,185.42,9.07442699]
[1736591240946,81.7,185.48,185.41,9.07442699]
[1736591242433,81.7,185.48,185.42,9.07442699]
[1736591243142,81.7,185.47,185.42,9.07442699]
[1736591244039,81.7,185.46,185.42,9.07442699]
[1736591245957,81.7,185.44,185.37,1.6294]
[1736591246446,81.7,185.44,185.34,9.07442699]
[1736591246830,81.7,185.43,185.33,83.96829222]
[1736591247547,81.7,185.43,185.33,75.55492699]
[1736591248454,81.7,185.43,185.34,9.07442699]
[1736591249523,81.7,185.42,185.38,9.07442699]
[1736591249833,81.7,185.48,185.41,9.07442699]
[1736591250043,81.7,185.48,185.42,9.07442699]
[1736591250243,81.7,185.48,185.43,9.07442699]
[1736591250754,81.7,185.48,185.42,9.07442699]
[1736591251955,81.7,185.48,185.43,9.07442699]
[1736591253327,81.7,185.48,185.44,23.776884]
[1736591253629,81.7,185.48,185.46,9.07442699]
[1736591254236,81.7,185.48,185.4,4.66]
[1736591254535,6.6082,185.56,185.41,23.776884]
[1736591254536,81.7,185.47,185.41,23.776884]
[1736591254742,81.7,185.47,185.41,30.99697587]
[1736591256449,81.7,185.54,185.46,9.07442699]
[1736591256755,81.7,185.51,185.45,9.07442699]
[1736591257125,81.7,185.5,185.46,9.07442699]
[1736591257324,81.7,185.49,185.45,9.07442699]
[1736591259744,81.7,185.48,185.44,9.07442699]
[1736591261539,81.7,185.47,185.44,9.07442699]
[1736591261847,81.7,185.47,185.46,9.07442699]
[1736591262267,81.7,185.46,185.45,9.07442699]
[1736591262455,81.7,185.45,185.44,9.07442699]
[1736591266741,81.7,185.45,185.44,32.85131099]
[1736591267254,81.7,185.54,185.44,32.85131099]
[1736591267432,81.7,185.53,185.48,9.07442699]
[1736591273068,81.7,185.52,185.48,9.07442699]
[1736591273873,81.7,185.52,185.47,9.07442699]
[1736591275853,81.7,185.52,185.49,9.07442699]
[1736591276777,81.7,185.52,185.45,1.5096]
[1736591276956,81.7,185.52,185.44,9.07442699]
[1736591277147,81.7,185.51,185.44,9.07442699]
[1736591278977,81.7,185.51,185.43,9.07442699]
[1736591279175,81.7,185.51,185.42,9.07442699]
[1736591279349,81.7,185.47,185.41,10.58402699]
[1736591285082,81.7,185.46,185.41,10.58402699]
[1736591285597,81.7,185.46,185.42,9.07442699]
[1736591286481,81.7,185.44,185.4,9.07442699]
[1736591290481,81.7,185.43,185.41,9.07442699]
[1736591299702,81.7,185.41,185.36,1.5096]
[1736591299996,81.7,185.41,185.37,9.07442699]
[1736591300169,81.7,185.41,185.38,9.07442699]
[1736591301398,81.7,185.4,185.38,9.07442699]
[1736591302496,81.7,185.4,185.37,9.07442699]
[1736591304877,81.7,185.39,185.35,9.07442699]
[1736591307576,81.7,185.39,185.36,9.07442699]
[1736591308396,81.7,185.39,185.35,9.07442699]
[1736591309205,81.7,185.38,185.35,9.07442699]
[1736591315179,81.7,185.37,185.35,9.07442699]
[1736591315402,81.7,185.37,185.36,9.07442699]
[1736591319507,81.7,185.37,185.35,9.07442699]
[1736591323909,81.7,185.37,185.36,9.07442699]
[1736591332021,81.7,185.37,185.32,1.5313]